bitfinex/quotes_SOLUSD_20220113
["timestamp","ask_amount","ask_price","bid_price","bid_amount"]
[1642089401802,3.73538993,152.76,152.66,2.619]
[1642089402002,3.73538993,152.76,152.66,3.129]
[1642089402200,3.73538993,152.76,152.66,8.619]
[1642089402403,3.73538993,152.76,152.71,29.4529]
[1642089402599,3.73538993,152.76,152.72,5.94885456]
[1642089402800,5.54310239,152.8,152.73,76.0]
[1642089403000,1.54310239,152.8,152.75,8.8359]
[1642089403200,1.54310239,152.8,152.73,78.00359509]
[1642089403501,0.00310239,152.8,152.78,29.4384]
[1642089403899,0.00310239,152.8,152.78,29.9484]
[1642089404200,0.00310239,152.8,152.78,29.6884]
[1642089404401,161.9857,152.9,152.78,29.6884]
[1642089404700,2.617,152.9,152.82,7.8505]
[1642089404901,2.616,152.91,152.79,26.1657]
[1642089405108,7.306,152.91,152.79,26.6757]
[1642089405299,2.616,152.91,152.79,26.4157]
[1642089405503,8.616,152.91,152.74,2.617]
[1642089405706,13.4519426,152.9,152.74,0.26]
[1642089405902,12.4316,152.89,152.77,26.1706]
[1642089406104,6.0,152.89,152.75,2.617]
[1642089406304,6.0,152.89,152.74,0.26]
[1642089406305,2.617,152.88,152.74,0.26]
[1642089406505,8.617,152.88,152.74,0.26]
[1642089406708,2.617,152.88,152.73,76.26]
[1642089406906,24.63207975,152.89,152.81,7.8507]
[1642089407104,8.616,152.88,152.81,7.8507]
[1642089407507,8.616,152.88,152.74,13.85318229]
[1642089408006,8.876,152.88,152.81,14.06513283]
[1642089408208,2.617,152.91,152.81,5.152]
[1642089408409,2.616,152.95,152.81,5.152]
[1642089408608,2.616,152.95,152.81,5.412]
[1642089408812,2.616,152.95,152.78,46.2219]
[1642089409013,14.05467916,152.94,152.84,7.8495]
[1642089409214,2.616,152.93,152.82,3.38262241]
[1642089409410,2.616,152.95,152.82,3.38262241]
[1642089409611,6.0,152.93,152.82,6.24862241]
[1642089409811,6.0,152.95,152.82,6.24862241]
[1642089410030,8.616,152.97,152.83,26.1587]
[1642089410413,17.45017556,152.96,152.83,26.4087]
[1642089410611,2.616,152.95,152.83,26.4087]
[1642089410911,2.616,152.95,152.83,0.25]
[1642089411110,8.616,152.95,152.83,0.25]
[1642089411312,2.616,152.99,152.84,2.616]
[1642089411513,73.69549219,153.0,152.84,11.014]
[1642089411714,73.69549219,153.0,152.84,11.274]
[1642089411913,79.69549219,153.0,152.84,10.764]
[1642089412111,16.84397317,152.99,152.85,10.47055988]
[1642089412312,2.615,152.98,152.79,2.615]
[1642089412511,7.82,152.97,152.79,2.615]
[1642089412711,7.82,152.97,152.78,46.2219]
[1642089412712,2.616,152.96,152.78,48.8379]
[1642089413112,8.616,152.96,152.88,7.8471]
[1642089413315,6.0,152.96,152.87,3.88219805]
[1642089413515,8.615,152.97,152.87,3.88219805]
[1642089413712,6.0,152.97,152.87,3.88219805]
[1642089414013,8.615,152.99,152.87,4.39219805]
[1642089414212,2.615,152.99,152.87,4.39219805]
[1642089414415,8.615,152.99,152.87,4.39219805]
[1642089414815,18.4226,152.99,152.91,7.8456]
[1642089415014,18.6726,152.99,152.91,0.25]
[1642089415616,8.865,152.99,152.91,0.25]
[1642089415815,8.865,152.99,152.92,7.8448]
[1642089416016,6.25,152.99,152.92,7.8448]
[1642089416216,6.25,152.99,152.91,0.25]
[1642089416515,6.25,152.99,152.85,26.1625]
[1642089416716,6.25,152.99,152.85,23.5475]
[1642089416915,16.0572,152.99,152.85,23.5475]
[1642089417115,6.25,152.99,152.85,23.5475]
[1642089417618,2.615,152.98,152.85,23.5475]
[1642089417817,2.615,152.98,152.92,7.8449]
[1642089418019,6.0,152.98,152.92,0.51]
[1642089418619,0.32838815,153.0,152.92,0.26]
[1642089418818,2.615,152.99,152.91,26.1448]
[1642089419029,6.0,152.99,152.91,0.51]
[1642089419220,0.32838815,153.0,152.91,0.51]
[1642089419620,0.32838815,153.0,152.91,0.25]
[1642089419822,0.32838815,153.0,152.91,63.89]
[1642089420021,0.32838815,153.0,152.95,7.8433]
[1642089420421,0.32838815,153.0,152.95,8.0933]
[1642089420624,2.615,153.09,153.0,0.11921885]
[1642089421024,8.615,153.09,153.0,0.11921885]
[1642089421224,2.615,153.09,153.0,0.11921885]
[1642089421447,8.615,153.09,153.0,0.11921885]
[1642089421645,2.615,153.09,153.0,0.11921885]
[1642089422045,2.613,153.11,153.0,6.84121885]
[1642089422244,158.7441,153.14,153.0,6.84121885]
[1642089422245,2.613,153.13,153.0,6.84121885]
[1642089422546,7.82,153.12,153.0,0.11921885]
[1642089422746,14.35827495,153.08,153.0,0.11921885]
[1642089422947,2.613,153.07,153.0,0.11921885]
[1642089423347,2.863,153.07,153.0,0.11921885]
[1642089423749,8.863,153.07,153.0,0.11921885]
[1642089423949,18.6657,153.07,153.0,0.11921885]
[1642089424450,8.863,153.07,153.0,0.11921885]
[1642089424849,6.25,153.07,153.0,0.11921885]
[1642089425050,7.5528,153.07,153.0,0.11921885]
[1642089425251,2.613,153.06,153.0,0.11921885]
[1642089425449,17.17328418,153.06,153.0,0.11921885]
[1642089425654,63.64,153.05,153.0,0.11921885]
[1642089425950,2.613,153.04,153.0,0.11921885]
[1642089426150,6.0,153.05,153.0,0.11921885]
[1642089426351,6.0,153.04,153.0,0.11921885]
[1642089426553,6.0,153.05,153.0,0.11921885]
[1642089427051,8.613,153.06,153.0,0.11921885]
[1642089427350,0.25,153.05,153.0,0.11921885]
[1642089427952,8.613,153.06,153.0,8.93991885]
[1642089428155,6.0,153.06,153.0,8.93991885]
[1642089428354,6.0,153.06,153.0,9.0807]
[1642089428553,6.0,153.12,152.95,2.613]
[1642089428756,17.33073246,153.1,152.96,0.26]
[1642089428962,2.613,153.09,152.94,0.25]
[1642089429154,2.863,153.09,152.92,53.1215]
[1642089429355,9.123,153.09,152.92,53.1215]
[1642089429556,9.123,153.09,152.96,8.8228]
[1642089429557,18.414,153.09,152.96,8.8228]
[1642089429755,3.68751959,153.08,152.96,8.8228]
[1642089429956,9.18751959,153.08,152.96,8.8228]
[1642089430356,9.18751959,153.08,152.92,1.49797666]
[1642089430554,2.614,153.07,152.92,0.25]
[1642089430956,13.4479971,153.06,152.92,0.25]
[1642089431156,9.124,153.07,152.92,0.25]
[1642089431357,6.51,153.07,152.93,2.614]
[1642089431557,0.25,153.07,152.93,2.864]
[1642089431757,6.0,153.07,152.93,2.864]
[1642089431957,15.8027,153.07,152.95,8.8239]
[1642089432158,28.91053059,153.07,152.96,2.614]
[1642089432356,28.91053059,153.07,152.94,2.614]
[1642089432557,31.52453059,153.07,152.93,1.49797666]
[1642089432956,18.9267,153.07,152.96,8.8234]
[1642089433160,12.4153,153.09,152.96,8.8234]
[1642089433360,10.433,153.14,152.97,4.11097666]
[1642089433559,0.25,153.09,152.97,4.36097666]
[1642089433760,0.25,153.09,152.98,1.49797666]
[1642089433962,0.25,153.09,152.99,2.613]
[1642089434161,0.25,153.09,153.01,8.8202]
[1642089434661,72.503,153.12,153.01,8.8202]
[1642089434962,2.613,153.12,153.02,9.31797666]
[1642089435162,2.613,153.12,153.05,8.8164]
[1642089435564,153.0374,153.17,153.05,8.8164]
[1642089435763,2.612,153.17,153.05,8.8164]
[1642089435964,12.4081,153.18,153.05,9.3264]
[1642089436161,2.612,153.18,153.05,9.3264]
[1642089436564,2.612,153.19,153.05,6.1264]
[1642089436762,7.82,153.21,153.06,7.82]
[1642089436763,2.612,153.2,153.06,7.82]
[1642089436961,2.612,153.2,153.07,8.8144]
[1642089437362,2.612,153.2,153.07,9.3244]
[1642089437762,2.612,153.2,153.08,7.82]
[1642089437962,75.2654,153.25,153.09,2.611]
[1642089438161,17.6096,153.28,153.11,8.812]
[1642089438363,17.6096,153.28,153.12,2.611]
[1642089438565,7.82,153.28,153.12,3.121]
[1642089438762,94.81406537,153.29,153.13,7.82]
[1642089438963,79.6273,153.29,153.14,2.61]
[1642089439363,85.6273,153.29,153.14,3.12]
[1642089439565,85.6273,153.29,153.14,11.9298]
[1642089439566,89.4155,153.29,153.14,11.9298]
[1642089439766,2.611,153.29,153.15,7.82]
[1642089439968,84.802,153.32,153.16,63.64]
[1642089440201,76.982,153.32,153.17,7.82]
[1642089440366,90.98992113,153.32,153.18,2.61]
[1642089440569,90.98992113,153.32,153.18,3.12]
[1642089440767,100.77592113,153.32,153.18,11.9271]
[1642089440967,29.79392113,153.32,153.18,11.9271]
[1642089441170,20.00792113,153.32,153.18,11.9271]
[1642089441371,6.0,153.32,153.18,11.9271]
[1642089441569,2.61,153.31,153.18,75.5671]
[1642089441767,13.82,153.34,153.18,75.5671]
[1642089441967,63.64,153.3,153.18,11.4171]
[1642089442170,65.28999521,153.3,153.12,52.60007829]
[1642089442370,26.90304342,153.29,153.11,2.61]
[1642089442571,31.25304821,153.29,153.1,2.61]
[1642089442771,9.789,153.27,153.11,7.82]
[1642089442969,16.039,153.27,153.12,4.10897666]
[1642089443168,16.039,153.27,153.12,41.29857666]
[1642089443169,6.25,153.27,153.12,41.29857666]
[1642089443370,63.64,153.26,153.12,40.0506]
[1642089443569,69.89,153.26,153.12,40.0506]
[1642089443873,6.25,153.26,153.12,40.0506]
[1642089444069,6.25,153.26,153.12,41.54857666]
[1642089444270,16.43,153.29,153.12,41.54857666]
[1642089444470,6.0,153.29,153.12,54.34657666]
[1642089444870,6.0,153.29,153.12,118.24657666]
[1642089445073,6.0,153.3,153.12,118.24657666]
[1642089445471,2.61,153.31,153.12,128.6205903]
[1642089445770,2.61,153.33,153.14,29.3526]
[1642089445970,93.8852,153.36,153.16,63.64]
[1642089446170,93.8852,153.36,153.18,68.64]
[1642089446171,81.4914,153.36,153.18,68.64]
[1642089446377,2.609,153.38,153.19,16.6239]
[1642089446572,16.34242645,153.37,153.2,2.609]
[1642089446772,10.429,153.36,153.2,2.609]
[1642089446971,9.7857,153.32,153.2,0.25]
[1642089447171,10.429,153.36,153.2,0.25]
[1642089447372,10.429,153.36,153.22,8.8055]
[1642089447571,16.429,153.36,153.23,2.609]
[1642089447773,16.429,153.36,153.22,0.25]
[1642089447974,9.7851,153.33,153.22,0.25]
[1642089448374,2.609,153.36,153.22,9.0551]
[1642089448576,0.88580404,153.37,153.23,2.609]
[1642089448988,0.88580404,153.37,153.23,2.859]
[1642089449182,0.88580404,153.37,153.24,7.82]
[1642089449583,0.88580404,153.37,153.24,17.1329]
[1642089450085,0.88580404,153.37,153.24,27.50691364]
[1642089450282,0.88580404,153.37,153.24,24.44401364]
[1642089450484,0.88580404,153.37,153.24,33.24541364]
[1642089450885,0.88580404,153.37,153.24,24.44401364]
[1642089451084,0.88580404,153.37,153.24,30.2238586]
[1642089451294,0.88580404,153.37,153.24,35.5758586]
[1642089451488,0.88580404,153.37,153.24,35.8358586]
[1642089451885,2.609,153.42,153.24,99.4758586]
[1642089452085,2.608,153.47,153.24,99.4758586]
[1642089452287,2.608,153.47,153.26,63.64]
[1642089452488,2.608,153.47,153.28,161.34]
[1642089452687,0.32731288,153.5,153.29,10.427]
[1642089452890,0.32731288,153.5,153.3,283.3643]
[1642089453086,2.68662902,153.49,153.32,0.71]
[1642089453290,0.07962902,153.49,153.33,10.427]
[1642089453487,0.07962902,153.49,153.35,8.7955]
[1642089453691,2.607,153.48,153.36,7.82]
[1642089454091,2.607,153.48,153.36,14.33]
[1642089454688,2.607,153.48,153.37,8.7958]
[1642089454890,0.07962902,153.49,153.38,7.82]
[1642089455206,0.07962902,153.49,153.38,8.33]
[1642089455408,0.07962902,153.49,153.39,11.09623586]
[1642089455607,1.87707502,153.56,153.4,10.426]
[1642089455806,1.87707502,153.56,153.4,16.6132]
[1642089456009,1.87707502,153.56,153.4,23.1232]
[1642089456207,7.87707502,153.56,153.4,40.69843586]
[1642089456609,6.0,153.56,153.41,2.606]
[1642089456807,6.0,153.56,153.42,7.82]
[1642089457007,2.606,153.6,153.43,8.7908]
[1642089457008,8.606,153.6,153.43,8.7908]
[1642089457210,8.606,153.6,153.44,7.82]
[1642089457609,8.606,153.6,153.44,8.07]
[1642089457813,24.54520473,153.6,153.44,8.07]
[1642089458013,26.44519994,153.6,153.45,8.7917]
[1642089458412,7.86367,153.59,153.45,8.7917]
[1642089458610,2.605,153.58,153.45,8.7917]
[1642089458910,2.605,153.58,153.4,7.82]
[1642089458911,21.7731159,153.57,153.4,7.82]
[1642089459116,32.5832,153.53,153.38,7.82]
[1642089459316,2.606,153.52,153.38,7.82]
[1642089459512,6.25,153.52,153.38,7.82]
[1642089459813,2.606,153.51,153.38,7.82]
[1642089460012,2.606,153.51,153.39,8.7969]
[1642089460013,8.606,153.51,153.39,8.7969]
[1642089460211,6.0,153.51,153.4,7.82]
[1642089460414,6.25,153.51,153.4,7.82]
[1642089460614,6.0,153.51,153.4,7.82]
[1642089460812,18.3779,153.55,153.4,7.82]
[1642089461116,2.606,153.56,153.43,63.64]
[1642089461316,2.606,153.57,153.44,7.82]
[1642089461519,2.605,153.58,153.44,8.33]
[1642089461816,2.605,153.6,153.45,2.605]
[1642089462013,73.8815,153.61,153.46,7.82]
[1642089462212,73.8815,153.61,153.47,2.605]
[1642089462412,73.8815,153.61,153.47,10.425]
[1642089462613,73.8815,153.61,153.47,10.935]
[1642089462816,2.605,153.62,153.47,8.33]
[1642089463214,2.605,153.62,153.48,8.7898]
[1642089463618,2.605,153.62,153.48,9.2998]
[1642089464116,10.72867,153.62,153.48,8.7898]
[1642089464317,7.86367,153.61,153.48,8.7898]
[1642089464516,2.605,153.6,153.48,8.7898]
[1642089464919,16.71867,153.6,153.48,8.7898]
[1642089465118,9.7689,153.59,153.48,10.28414717]
[1642089465318,7.86367,153.58,153.48,8.7898]
[1642089466449,2.605,153.59,153.48,8.7898]
[1642089466618,6.0,153.58,153.48,8.7898]
[1642089466822,13.82,153.64,153.48,8.7898]
[1642089467021,13.82,153.64,153.48,9.0398]
[1642089467220,13.82,153.64,153.48,10.53414717]
[1642089467621,7.82,153.64,153.49,15.6314]
[1642089467920,7.82,153.64,153.51,26.0374]
[1642089468220,7.82,153.64,153.52,2.604]
[1642089468520,2.605,153.66,153.52,10.934]
[1642089468720,2.605,153.66,153.52,18.7452]
[1642089468919,2.605,153.66,153.52,24.7452]
[1642089469322,2.605,153.66,153.52,18.7452]
[1642089469719,86.8363,153.67,153.52,18.7452]
[1642089469920,6.0,153.66,153.52,18.7452]
[1642089470122,92.8363,153.67,153.52,18.7452]
[1642089470321,83.0727,153.67,153.52,18.4852]
[1642089470522,7.86367,153.66,153.52,18.4852]
[1642089470722,2.604,153.65,153.52,18.4852]
[1642089470923,18.53767,153.66,153.52,18.4852]
[1642089471123,0.25,153.65,153.52,18.4852]
[1642089471325,0.25,153.65,153.52,15.8812]
[1642089471523,18.28767,153.66,153.52,15.8812]
[1642089471731,18.28767,153.66,153.52,18.4852]
[1642089471927,18.28767,153.66,153.52,18.7452]
[1642089472122,9.7656,153.64,153.52,18.7452]
[1642089472322,24.28767,153.66,153.52,18.7452]
[1642089472522,6.0,153.64,153.52,18.7452]
[1642089472723,6.0,153.64,153.52,15.8812]
[1642089473124,0.26,153.64,153.52,15.8812]
[1642089473422,16.46767,153.66,153.52,27.49743586]
[1642089473623,10.46767,153.66,153.53,65.14047838]
[1642089473948,7.86367,153.66,153.54,10.4141]
[1642089474422,7.86367,153.66,153.54,8.0601]
[1642089474924,9.7655,153.64,153.54,7.8101]
[1642089475122,78.01367,153.66,153.54,7.8101]
[1642089475323,6.25,153.64,153.54,7.8101]
[1642089475822,16.0159,153.64,153.54,7.8101]
[1642089476423,16.0159,153.64,153.54,8.0601]
[1642089476623,6.25,153.64,153.54,8.0601]
[1642089477123,0.25,153.64,153.54,8.0601]
[1642089477326,16.0159,153.64,153.54,8.0601]
[1642089477525,6.25,153.64,153.54,8.0601]
[1642089477924,8.07,153.64,153.54,7.8101]
[1642089478123,46.6291,153.64,153.51,2.604]
[1642089478325,15.8491736,153.63,153.5,2.604]
[1642089478524,7.82,153.62,153.5,2.604]
[1642089478724,63.64,153.61,153.5,2.604]
[1642089478925,2.604,153.65,153.5,2.604]
[1642089478926,0.004,153.67,153.61,0.78125]
[1642089479126,13.59689972,153.8,153.66,97.7]
[1642089479426,8.97411048,153.82,153.75,97.7]
[1642089479626,9.48178238,153.86,153.85,12.14637997]
[1642089479828,9.48178238,153.86,153.85,19.94617997]
[1642089480026,9.48178238,153.86,153.85,27.76617997]
[1642089480027,8.94582474,153.86,153.85,27.76617997]
[1642089480427,0.02,153.89,153.85,27.76617997]
[1642089480827,0.02,153.89,153.85,19.94617997]
[1642089482337,0.02,153.89,153.85,27.76617997]
[1642089483138,0.02,153.89,153.85,28.01617997]
[1642089483337,0.02,153.89,153.85,27.76617997]
[1642089484040,2.599,153.95,153.85,35.81377997]
[1642089484237,0.03791311,153.98,153.86,62.0]
[1642089484437,0.03791311,153.98,153.87,7.82]
[1642089484637,0.03791311,153.98,153.88,18.21628]
[1642089484839,0.03791311,153.98,153.89,7.82]
[1642089485042,0.03791311,153.98,153.93,7.7935]
[1642089485438,0.03791311,153.98,153.94,7.79524]
[1642089485840,0.03791311,153.98,153.94,15.87524]
[1642089486039,0.03791311,153.98,153.94,22.12524]
[1642089486238,0.03791311,153.98,153.96,7.7906]
[1642089486441,0.03791311,153.98,153.97,84.61372]
[1642089486640,0.03791311,153.98,153.97,15.61372]
[1642089486840,0.03791311,153.98,153.97,7.79372]
[1642089487243,6.10231305,153.98,153.97,7.79372]
[1642089487444,0.03791311,153.98,153.97,7.79372]
[1642089488440,0.03791311,153.98,153.97,8.04372]
[1642089488840,0.03791311,153.98,153.97,0.00372]
[1642089489064,0.03791311,153.98,153.88,7.82]
[1642089489464,0.03791311,153.98,153.89,7.7956]
[1642089489765,17.3909055,153.98,153.89,7.7956]
[1642089489966,23.6409055,153.98,153.89,7.7956]
[1642089490164,23.6409055,153.98,153.86,10.417]
[1642089490565,33.3857055,153.98,153.86,18.2142]
[1642089492165,33.3857055,153.98,153.86,15.6172]
[1642089492568,33.1357055,153.98,153.86,15.6172]
[1642089492767,0.03791311,153.98,153.87,2.598]
[1642089492967,0.03791311,153.98,153.92,7.7912]
[1642089493167,0.03791311,153.98,153.93,10.418]
[1642089493567,0.03791311,153.98,153.93,10.668]
[1642089493966,0.03791311,153.98,153.93,10.928]
[1642089494166,0.03791311,153.98,153.95,7.7902]
[1642089494366,0.03791311,153.98,153.96,10.417]
[1642089494568,0.32624463,154.0,153.97,76.82]
[1642089494769,99.01054463,154.11,153.98,2.597]
[1642089494968,2.597,154.12,153.99,7.82]
[1642089495367,27.06018303,154.11,153.99,7.7893]
[1642089495568,2.596,154.1,153.93,7.82]
[1642089495970,2.596,154.1,153.93,8.07]
[1642089496269,9.7399,154.06,153.96,7.7927]
[1642089496495,17.38147144,154.05,153.92,28.5715]
[1642089496689,17.38147144,154.05,153.92,2.596]
[1642089496883,23.38147144,154.05,153.92,2.596]
[1642089497689,23.38147144,154.05,153.93,7.82]
[1642089497884,23.63147144,154.05,153.93,7.82]
[1642089498188,33.37197144,154.05,153.95,7.7931]
[1642089498691,23.38147144,154.05,153.95,7.7931]
[1642089498885,23.38147144,154.05,153.95,8.0431]
[1642089499487,17.38147144,154.05,153.95,18.4601]
[1642089500585,105.4683,154.1,153.95,18.7201]
[1642089500787,102.8713,154.1,153.95,18.7201]
[1642089500990,108.8713,154.1,153.95,18.7201]
[1642089501190,84.7428,154.1,153.95,88.3601]
[1642089501392,98.01167233,154.1,154.03,7.7887]
[1642089501594,13.26887233,154.1,154.03,8.0387]
[1642089502194,13.26887233,154.1,154.03,0.25]
[1642089502395,13.26887233,154.1,154.0,2.596]
[1642089502396,23.00507233,154.1,154.0,2.596]
[1642089502595,23.00507233,154.1,153.78,349.79046279]
[1642089502596,23.25507233,154.1,153.96,2.596]
[1642089502797,1.64999521,154.09,153.94,2.596]
[1642089502997,15.36194574,154.07,153.88,2.597]
[1642089503195,10.417,154.06,153.88,2.597]
[1642089503601,8.597,154.06,153.92,63.64]
[1642089503803,2.597,154.12,153.93,10.417]
[1642089504002,138.2751,154.14,153.93,78.45715299]
[1642089504201,138.2751,154.14,153.94,11.38454697]
[1642089504403,138.2751,154.14,153.95,74.056]
[1642089504602,138.2751,154.14,153.95,106.77680602]
[1642089504802,15.06994696,154.13,153.96,11.38454697]
[1642089505003,24.80514696,154.13,153.99,7.79]
[1642089505205,9.7352,154.13,154.0,10.416]
[1642089505410,300.9656,154.17,154.0,21.80054697]
[1642089505411,268.5149,154.17,154.0,21.80054697]
[1642089505604,76.2829,154.17,154.01,63.64]
[1642089505805,152.3162,154.24,154.02,7.82]
[1642089506007,73.5299,154.23,154.03,47.1537]
[1642089506306,15.00707313,154.17,154.06,7.7877]
[1642089506505,15.00707313,154.17,154.07,7.82]
[1642089506906,15.00707313,154.17,154.07,8.07]
[1642089507104,21.00707313,154.17,154.07,8.07]
[1642089507306,15.00707313,154.17,154.07,15.8569]
[1642089507507,15.00707313,154.17,154.08,2.595]
[1642089507921,15.00707313,154.17,154.08,0.25]
[1642089508120,64.88,154.16,154.07,0.25]
[1642089508319,7.82,154.25,154.09,92.0]
[1642089508522,2.39298066,154.56,154.53,310.10329115]
[1642089508727,44.03217505,154.65,154.54,31.0]
[1642089508925,44.03217505,154.65,154.55,10.407]
[1642089509323,43.80676557,154.65,154.55,18.1684]
[1642089509524,43.80676557,154.65,154.59,97.7]
[1642089509721,9.4992,154.73,154.55,16.407]
[1642089509722,2.586,154.73,154.65,7.33059646]
[1642089509922,22.03940354,154.67,154.65,79.52948301]
[1642089510124,22.03940354,154.67,154.66,7.82]
[1642089510322,12.47110354,154.67,154.66,7.82]
[1642089510525,36.73233923,154.74,154.66,7.82]
[1642089510723,2.585,154.8,154.67,97.7]
[1642089510923,2.585,154.89,154.7,97.7]
[1642089511123,2.585,154.89,154.71,7.82]
[1642089511322,20.44984156,154.96,154.68,6.23]
[1642089511323,2.583,154.94,154.75,97.7]
[1642089511525,14.29337335,154.93,154.76,7.82]
[1642089511724,2.583,154.92,154.76,18.1533]
[1642089511922,13.00337335,154.93,154.77,97.7]
[1642089512124,13.00337335,154.93,154.78,10.403]
[1642089512324,13.00337335,154.93,154.78,36.07434851]
[1642089512525,13.00337335,154.93,154.8,97.7]
[1642089512726,13.00337335,154.93,154.81,10.402]
[1642089512924,13.00337335,154.93,154.81,28.5990142]
[1642089513127,13.00337335,154.93,154.81,37.55156809]
[1642089513324,13.00337335,154.93,154.82,97.7]
[1642089513524,2.582,155.0,154.86,92.0]
[1642089513730,15.75684718,154.98,154.87,10.401]
[1642089513929,15.75684718,154.98,154.87,7.82]
[1642089514526,8.96764156,155.18,154.97,97.7]
[1642089514726,2.66062902,155.26,155.08,97.7]
[1642089514925,0.07962902,155.26,155.11,7.7328]
[1642089515127,46.83018934,155.39,155.1,7.62782938]
[1642089515326,9.6657,155.33,155.04,97.7]
[1642089515526,2.577,155.32,155.05,7.82]
[1642089515728,5.41734147,155.33,155.06,7.82]
[1642089516026,24.897,155.32,155.01,7.7377]
[1642089516228,24.897,155.32,155.11,0.04]
[1642089516424,2.45353089,155.31,155.11,0.04]
[1642089516625,10.397,155.3,155.11,0.04]
[1642089516825,10.69777881,155.3,154.95,7.71002921]
[1642089517031,0.31498411,155.24,154.97,7.7398]
[1642089517232,10.398,155.23,154.97,6.15900385]
[1642089517427,0.3233998,155.16,154.93,7.82]
[1642089517626,9.6763,155.14,154.93,7.82]
[1642089517826,0.30523866,155.1,154.93,7.82]
[1642089518028,2.58,155.09,154.89,10.0]
[1642089518229,2.58,155.09,154.83,7.7473]
[1642089518427,0.30256362,155.05,154.84,2.581]
[1642089518627,2.581,155.04,154.84,7.82]
[1642089518828,9.6835,155.0,154.84,7.82]
[1642089519027,15.9335,155.0,154.85,2.581]
[1642089519227,2.581,154.99,154.84,7.82]
[1642089519527,8.831,154.99,154.84,7.82]
[1642089519729,8.831,154.99,154.79,2.582]
[1642089519929,2.54418345,154.98,154.76,7.82]
[1642089520229,10.402,154.97,154.76,7.82]
[1642089520630,10.652,154.97,154.76,15.5707]
[1642089520834,16.652,154.97,154.76,15.5707]
[1642089521031,6.65124158,154.9,154.76,15.5707]
[1642089521630,12.65124158,154.9,154.76,15.5707]
[1642089521830,12.65124158,154.9,154.76,7.82]
[1642089522030,12.65124158,154.9,154.74,7.7521]
[1642089522229,9.6908,154.87,154.74,7.7521]
[1642089522431,2.54418345,154.85,154.74,7.7521]
[1642089522632,11.27130671,154.85,154.74,15.5721]
[1642089522830,11.53130671,154.85,154.74,15.5721]
[1642089523130,17.53130671,154.85,154.74,15.5721]
[1642089523532,17.53130671,154.85,154.75,10.3354]
[1642089523533,8.72712326,154.84,154.75,10.3354]
[1642089523729,8.72712326,154.84,154.71,2.584]
[1642089523930,6.65124158,154.82,154.63,7.82]
[1642089524131,2.585,154.81,154.64,2.585]
[1642089524330,2.54418345,154.79,154.64,2.585]
[1642089524630,14.2390713,154.78,154.71,7.7536]
[1642089525031,14.2390713,154.78,154.72,2.584]
[1642089525231,14.2390713,154.78,154.67,2.585]
[1642089526332,2.54418345,154.79,154.72,7.7525]
[1642089526532,12.48139122,154.79,154.72,7.7525]
[1642089526732,0.00139122,154.9,154.73,10.404]
[1642089526934,12.48139122,154.94,154.73,10.404]
[1642089527135,2.583,154.93,154.73,10.404]
[1642089527334,15.06439122,154.93,154.73,10.404]
[1642089527544,19.34261892,154.92,154.73,10.404]
[1642089527736,19.34261892,154.92,154.8,7.7491]
[1642089527737,24.75129122,154.91,154.8,7.7491]
[1642089527935,2.33419733,154.89,154.8,7.7491]